bitfinex/quotes_ETHUSD_20250426
["timestamp","ask_amount","ask_price","bid_price","bid_amount"]
[1745663913900,4.795,1810.8,1810.6,5.52287741]
[1745663914575,4.795,1810.8,1810.6,11.04566581]
[1745663914902,4.795,1810.8,1810.7,5.52272601]
[1745663916909,0.7996,1811.0,1810.7,11.04545202]
[1745663917108,0.7996,1811.0,1810.7,6.62727121]
[1745663917280,8.5872,1811.1,1810.8,5.52241678]
[1745663917991,8.5872,1811.1,1810.7,1.1045452]
[1745663918193,14.10882733,1811.1,1810.7,1.1045452]
[1745663918520,8.5872,1811.1,1810.8,5.52232791]
[1745663918711,7.795,1811.1,1810.9,6.07434183]
[1745663918873,7.795,1811.1,1810.9,5.52210904]
[1745663919069,3.7922,1811.2,1810.8,0.803]
[1745663919272,4.795,1811.3,1811.0,5.52159339]
[1745663919273,5.5872,1811.3,1811.0,5.52159339]
[1745663919468,5.5872,1811.3,1811.1,5.52147449]
[1745663919676,0.7922,1811.5,1811.2,5.52098582]
[1745663919903,3.7922,1811.5,1811.2,5.52098582]
[1745663921209,0.7922,1811.5,1811.2,6.70551915]
[1745663922214,0.7922,1812.1,1811.3,1.29788938]
[1745663922471,4.794,1812.2,1811.9,5.51899458]
[1745663922657,4.794,1812.2,1811.9,6.07071693]
[1745663923930,4.794,1812.2,1811.9,0.55189946]
[1745663924132,4.794,1812.2,1811.9,6.07093086]
[1745663924743,0.10663631,1812.1,1812.0,5.51876379]
[1745663924947,0.10663631,1812.1,1812.0,6.32176379]
[1745663925144,4.794,1812.2,1812.0,7.00913012]
[1745663925345,0.13499446,1812.1,1812.0,0.68736633]
[1745663925547,0.7922,1812.1,1811.8,5.5193667]
[1745663925760,0.92719446,1812.1,1811.8,5.5193667]
[1745663925963,0.92719446,1812.1,1811.6,6.32282624]
[1745663926151,9.01378075,1812.0,1811.4,0.803]
[1745663926467,5.51907377,1811.9,1811.4,6.32344441]
[1745663926667,4.791,1811.8,1811.5,0.63234444]
[1745663926854,11.22742291,1811.8,1811.3,5.5207823]
[1745663927175,11.72231229,1811.8,1811.3,5.5207823]
[1745663927330,6.20272141,1811.8,1811.2,1.98753333]
[1745663927530,3.0,1811.7,1811.1,5.5213229]
[1745663927769,0.7922,1811.5,1811.1,5.5213229]
[1745663928074,4.791,1811.4,1811.1,5.5213229]
[1745663928282,4.92485629,1811.4,1811.2,5.52118229]
[1745663928632,4.92485629,1811.4,1811.3,5.52089659]
[1745663928865,4.92485629,1811.4,1811.3,6.62508822]
[1745663929181,4.92485629,1811.4,1811.2,5.52104908]
[1745663929734,4.92485629,1811.4,1811.3,5.52089659]
[1745663930045,4.92485629,1811.4,1811.2,5.52101965]
[1745663930563,4.92485629,1811.4,1811.3,5.52089659]
[1745663931333,0.13385629,1811.4,1811.3,5.52089659]
[1745663931533,3.0,1811.6,1811.3,12.1459848]
[1745663931749,0.13385629,1811.4,1811.3,6.62508821]
[1745663931947,3.0,1811.6,1811.3,6.62508821]
[1745663932149,0.13152296,1811.4,1811.3,6.62508821]
[1745663932476,0.13152296,1811.4,1811.3,1.10419162]
[1745663932681,3.0,1811.6,1811.2,5.52118564]
[1745663932846,0.13152296,1811.4,1811.2,5.52118564]
[1745663933034,3.0,1811.6,1811.2,5.52118564]
[1745663933364,0.13152296,1811.5,1811.2,5.52118564]
[1745663933531,0.13152296,1811.5,1811.0,1.20780976]
[1745663933735,5.65181639,1811.5,1811.0,6.32450729]
[1745663933935,0.13152296,1811.5,1811.1,6.15395567]
[1745663934136,0.13152296,1811.5,1811.1,6.15372172]
[1745663934353,0.13152296,1811.5,1811.2,5.52107198]
[1745663935072,0.13152296,1811.5,1811.3,5.52089295]
[1745663935277,0.13152296,1811.5,1811.2,5.52108771]
[1745663935580,0.13152296,1811.5,1811.3,0.55210877]
[1745663936477,0.13152296,1811.5,1811.2,5.52102696]
[1745663937300,0.13152296,1811.5,1811.1,6.15395325]
[1745663937574,6.2973098,1811.4,1811.0,5.52176056]
[1745663937779,6.2973098,1811.4,1810.8,5.52225263]
[1745663937780,0.90497821,1811.4,1811.1,5.52147195]
[1745663938072,0.90497821,1811.4,1811.1,5.52135272]
[1745663938277,0.90497821,1811.4,1811.2,5.5211938]
[1745663938577,0.12827821,1811.4,1811.2,6.62531347]
[1745663938780,0.12827821,1811.4,1811.2,1.85595465]
[1745663938941,3.7767,1811.6,1811.2,7.37695308]
[1745663939141,0.12827821,1811.3,1811.2,7.37695308]
[1745663939356,3.7767,1811.6,1811.2,7.37695308]
[1745663939357,9.29682178,1811.6,1811.2,1.10425465]
[1745663939558,0.12827821,1811.3,1811.1,11.04266087]
[1745663939749,3.7767,1811.6,1811.2,5.52120141]
[1745663939965,9.29670621,1811.6,1811.2,5.52120141]
[1745663940138,9.29670621,1811.6,1811.1,5.52133315]
[1745663940338,9.29670621,1811.6,1811.1,6.7008025]
[1745663941769,5.52032428,1811.5,1811.1,6.7009267]
[1745663941978,5.52031196,1811.5,1811.1,6.7009267]
[1745663944279,8.52069974,1811.4,1810.9,5.52186291]
[1745663944488,0.7527,1811.3,1810.9,5.52186291]
[1745663945164,0.7527,1811.3,1811.0,5.52156789]
[1745663945357,3.0,1811.4,1811.1,5.52134761]
[1745663945560,0.7527,1811.5,1811.1,5.52126276]
[1745663945884,0.7527,1811.5,1811.2,6.07319171]
[1745663946675,3.0,1811.6,1811.2,6.07319171]
[1745663946876,3.0,1811.6,1811.2,0.55212628]
[1745663947076,0.12503311,1811.5,1811.4,5.52044028]
[1745663947682,0.12503311,1811.5,1811.3,5.52066304]
[1745663947982,0.12503311,1811.5,1811.2,5.52104853]
[1745663948374,0.12503311,1811.5,1811.2,5.5211864]
[1745663949582,0.12503311,1811.5,1811.3,5.52086656]
[1745663949881,0.12503311,1811.5,1811.3,6.62507186]
[1745663951387,0.12503311,1811.5,1811.3,12.14574261]
[1745663951591,0.12503311,1811.5,1811.3,6.62487605]
[1745663953476,0.12503311,1811.5,1811.4,6.3381918]
[1745663953968,22.89036643,1812.0,1811.5,5.52007477]
[1745663954156,3.0,1811.9,1811.5,5.52007477]
[1745663954690,8.51912444,1811.9,1811.4,6.3381918]
[1745663954879,8.51912444,1811.9,1811.4,11.85854829]
[1745663955191,5.51968962,1811.7,1811.3,5.52082972]
[1745663955557,0.8026,1811.5,1810.9,0.49488938]
[1745663955776,0.8026,1811.5,1811.1,6.33896698]
[1745663955991,0.8026,1811.5,1811.1,7.52496669]
[1745663956154,0.8026,1811.5,1811.2,5.52118455]
[1745663958461,8.52111679,1811.3,1810.8,1.22240976]
[1745663958661,10.31028996,1811.2,1810.8,1.22240976]
[1745663959163,4.789,1811.2,1810.8,6.74482461]
[1745663959480,4.789,1811.2,1810.8,8.00040089]
[1745663960391,3.8026,1811.4,1811.0,5.52153235]
[1745663960593,3.8026,1811.4,1811.1,5.5214905]
[1745663961389,3.8026,1811.4,1810.9,5.52211607]
[1745663961589,3.79465983,1811.4,1811.0,5.52179202]
[1745663961756,5.521221,1811.2,1810.8,1.66038604]
[1745663961956,0.49488938,1811.3,1810.8,1.66038604]
[1745663961957,0.65536452,1811.3,1810.9,5.52209465]
[1745663962278,8.52075308,1811.4,1810.9,11.04396515]
[1745663962590,3.0,1811.4,1811.1,5.52149056]
[1745663962759,3.0,1811.4,1811.0,5.5216315]
[1745663962961,3.0,1811.4,1811.1,5.52125353]
[1745663963192,3.0,1811.4,1811.2,0.55212535]
[1745663963391,8.52062922,1811.4,1810.9,5.5218956]
[1745663963780,3.0,1811.4,1810.9,5.5218956]
[1745663963985,3.0,1811.4,1811.0,5.52169102]
[1745663964697,0.8026,1811.3,1811.0,5.52169102]
[1745663965298,0.8026,1811.3,1810.9,5.52197414]
[1745663965475,6.32353375,1811.3,1811.0,0.55219741]
[1745663965670,0.8026,1811.3,1811.0,0.55219741]
[1745663965919,0.8026,1811.3,1811.0,6.07400816]
[1745663967607,0.79600371,1811.3,1811.0,6.07400816]
[1745663967798,0.79600371,1811.3,1811.0,0.55219741]
[1745663968402,0.79600371,1811.3,1811.0,6.07397169]
[1745663968588,0.79600371,1811.3,1811.1,0.60739717]
[1745663969979,5.58600371,1811.3,1811.1,0.60739717]
[1745663973243,5.57961055,1811.3,1810.9,5.52197922]
[1745663973623,11.10065719,1811.3,1810.8,0.40480976]
[1745663973812,5.52140931,1811.2,1810.8,0.40480976]
[1745663974878,3.0,1811.1,1810.7,0.28840518]
[1745663975139,4.79,1811.3,1811.0,5.52153963]
[1745663975450,4.79,1811.3,1810.9,11.79745119]
[1745663975735,4.79,1811.3,1811.1,5.52147475]
[1745663975891,4.79,1811.3,1811.0,5.52179758]
[1745663976087,4.79,1811.3,1811.1,5.52148386]
[1745663976714,4.79,1811.3,1810.9,6.27548027]
[1745663976920,4.79,1811.3,1810.9,6.9030283]
[1745663977690,4.79,1811.3,1810.9,1.38104803]
[1745663977891,4.79,1811.3,1811.0,5.52168035]
[1745663980443,4.79,1811.3,1810.9,0.7535]
[1745663980444,0.7547,1811.2,1810.8,5.52228208]
[1745663980612,0.7547,1811.2,1810.8,5.52217579]
[1745663980818,0.7547,1811.2,1810.8,11.04435158]
[1745663981148,0.7547,1811.2,1810.9,6.62648573]
[1745663982525,4.79,1811.3,1810.9,6.62648573]
[1745663982714,4.79,1811.3,1811.0,5.52176182]
[1745663983165,4.79,1811.3,1811.1,5.5213809]
[1745663985054,4.7835478,1811.3,1811.2,5.52120141]
[1745663985215,4.7835478,1811.3,1811.2,1.10427077]
[1745663985411,4.7835478,1811.3,1811.1,5.52126527]
[1745663987250,5.5382478,1811.3,1810.9,7.3961952]
[1745663987455,5.5382478,1811.3,1810.9,6.6263952]
[1745663987644,11.05926368,1811.3,1810.8,5.52225393]
[1745663988119,11.05926368,1811.3,1810.8,5.52217729]
[1745663988520,5.5382478,1811.3,1810.9,5.52208885]
[1745663989038,11.05915487,1811.3,1810.8,5.5222282]
[1745663989746,11.05915487,1811.3,1810.9,5.52211505]
[1745663989955,5.5382478,1811.3,1810.9,5.52211505]
[1745663990257,5.5382478,1811.3,1810.8,5.52230242]
[1745663990456,11.05929087,1811.3,1810.8,6.76942057]
[1745663991624,11.05929087,1811.3,1810.9,5.52209757]
[1745663991922,11.05929087,1811.3,1810.8,6.76947651]
[1745663992625,11.05929087,1811.3,1810.8,6.76928995]
[1745663993322,11.05929087,1811.3,1810.8,12.29149742]
[1745663993550,11.05929087,1811.3,1810.9,5.52211014]
[1745663994561,11.05929087,1811.3,1810.8,6.76934725]
[1745663995563,5.52120678,1811.2,1810.8,6.76934725]
[1745663995747,5.52120678,1811.2,1810.8,1.24711815]
[1745663996066,5.52120678,1811.2,1810.8,5.52238229]
[1745663997027,11.05932444,1811.3,1810.8,5.52238229]
[1745663997829,5.5219824,1811.0,1810.6,0.28845305]
[1745663998025,0.8157,1810.9,1810.6,0.28845305]
[1745663998372,0.8157,1810.9,1810.6,6.47481855]
[1745664000957,0.8157,1810.8,1810.6,0.28845305]
[1745664001123,0.8157,1810.8,1810.5,5.52311274]
[1745664001756,4.789,1810.9,1810.6,5.52302098]
[1745664002258,4.789,1810.9,1810.7,5.52271607]
[1745664003063,4.789,1810.9,1810.6,5.52284697]
[1745664003250,4.789,1810.9,1810.6,6.62744929]
[1745664004540,4.789,1810.9,1810.6,5.52284697]
[1745664005862,4.789,1810.9,1810.7,5.52269902]
[1745664006351,4.789,1810.9,1810.7,6.31369902]
[1745664008347,4.77774168,1810.9,1810.7,6.31369902]
[1745664015470,4.77774168,1810.9,1810.7,6.31352086]
[1745664015662,4.77774168,1810.9,1810.8,0.63135209]
[1745664016588,4.77774168,1810.9,1810.8,6.15377311]
[1745664016982,4.77774168,1810.9,1810.8,0.63135209]
[1745664017505,4.77774168,1810.9,1810.7,5.52252086]
[1745664018172,4.77774168,1810.9,1810.7,11.04503673]
[1745664018367,4.77774168,1810.9,1810.7,5.52251587]
[1745664019403,4.77774168,1810.9,1810.8,5.52242102]
[1745664023806,5.6018,1811.2,1810.8,5.52242102]
[1745664024173,5.6018,1811.2,1810.9,5.52208604]
[1745664024398,5.6018,1811.2,1810.8,5.52217691]
[1745664024599,5.6018,1811.2,1810.8,11.04435382]
[1745664026805,5.6018,1811.2,1810.8,5.52217691]
[1745664027720,5.6018,1811.2,1810.9,5.52198584]
[1745664028473,5.6018,1811.2,1810.9,5.52195644]
[1745664029104,5.6018,1811.2,1810.9,5.52199693]
[1745664029407,5.6018,1811.2,1810.6,6.35017869]
[1745664029597,5.6018,1811.2,1810.9,5.52198367]
[1745664030886,5.6018,1811.2,1810.8,5.52238834]
[1745664031408,5.6018,1811.2,1810.8,5.52217663]
[1745664031711,5.6018,1811.2,1810.9,5.52201094]
[1745664034023,5.6018,1811.2,1811.0,5.52174762]
[1745664034522,5.6018,1811.2,1810.9,5.52190613]
[1745664035609,4.787,1811.1,1810.9,5.52190613]
[1745664035799,4.787,1811.1,1810.9,5.52211334]
[1745664042040,4.787,1811.1,1811.0,5.52181115]
[1745664042491,4.787,1811.3,1811.2,5.52104608]
[1745664042695,4.787,1811.4,1811.2,5.52104608]
[1745664051050,4.787,1811.4,1811.1,5.52135557]
[1745664051348,4.787,1811.4,1811.1,5.52132958]
[1745664051528,4.787,1811.4,1811.1,6.62562877]
[1745664052127,4.787,1811.4,1811.1,12.14692221]
[1745664052330,4.787,1811.4,1811.1,6.62559263]
[1745664052632,4.787,1811.4,1811.1,12.14689525]
[1745664052832,4.787,1811.4,1811.1,6.62559263]
[1745664053033,4.787,1811.4,1811.2,6.18369727]
[1745664053231,7.784,1811.6,1811.2,1.43145926]
[1745664053544,7.784,1811.6,1811.5,0.7689]
[1745664053545,4.784,1811.6,1811.5,0.7689]
[1745664053707,4.784,1811.6,1811.4,5.52029258]
[1745664053907,4.784,1811.6,1811.4,6.28919258]
[1745664054537,4.784,1811.6,1811.4,0.7689]
[1745664055257,4.784,1811.6,1811.3,5.52071049]
[1745664056307,0.93926255,1811.4,1810.9,0.7689]
[1745664056507,0.93926255,1811.2,1810.9,5.5220907]
[1745664056857,0.8238,1811.1,1810.8,5.52229653]
[1745664057007,0.8238,1811.1,1810.7,7.2148912]
[1745664057409,0.8238,1811.1,1810.7,7.21494701]
[1745664057655,0.8238,1811.1,1810.7,12.73742979]
[1745664057809,0.8238,1811.1,1810.8,1.27374298]
[1745664058756,0.8238,1811.1,1810.8,6.79616171]
[1745664059206,5.5220394,1811.0,1810.7,0.288422]
[1745664059407,5.5220394,1811.0,1810.5,6.35530739]
[1745664059408,3.0,1810.9,1810.5,6.35530739]
[1745664059653,9.34541417,1811.1,1810.5,6.35519009]
[1745664059851,3.0,1810.9,1810.5,6.35519009]
[1745664060153,3.0,1810.9,1810.3,5.81215391]
[1745664060154,0.8177,1810.7,1810.4,11.04688512]
[1745664060334,0.8177,1810.7,1810.5,5.52331339]
[1745664060539,4.784,1810.8,1810.6,5.52303103]
[1745664060857,4.784,1810.8,1810.5,5.52314835]
[1745664061364,4.784,1810.8,1810.5,5.5230803]
[1745664061538,6.01519518,1811.0,1810.7,5.52253461]
[1745664061539,4.784,1811.0,1810.7,5.52253461]
[1745664061743,10.3058338,1811.0,1810.6,6.35494411]
[1745664062058,3.8177,1810.9,1810.4,7.57227619]
[1745664062208,9.83328829,1810.9,1810.4,5.52342963]
[1745664062611,4.31108236,1810.9,1810.5,5.52333092]
[1745664062872,3.8177,1810.9,1810.5,11.87852414]
[1745664063157,3.8177,1810.9,1810.6,5.52292611]
[1745664063719,3.8177,1810.9,1810.5,6.35525088]
[1745664063928,9.33997291,1810.9,1810.4,5.52350898]
[1745664064113,4.31108236,1810.9,1810.5,5.52328633]
[1745664064558,4.31108236,1810.9,1810.5,5.52320858]
[1745664064744,4.31108236,1810.9,1810.5,5.52309492]
[1745664066564,4.31108236,1810.9,1810.6,5.52301176]
[1745664066869,3.8177,1810.9,1810.6,5.52301176]
[1745664067414,3.8177,1810.9,1810.7,5.52265815]
[1745664067648,3.0,1810.9,1810.7,5.52265815]
[1745664067963,3.0,1810.9,1810.7,5.52260932]
[1745664068263,3.0,1810.9,1810.8,5.52242102]
[1745664068410,4.785,1810.9,1810.8,5.52242102]
[1745664068749,4.785,1810.9,1810.8,6.62693572]
[1745664070228,4.785,1810.9,1810.8,5.52242102]
[1745664072158,4.785,1811.1,1810.9,0.8321]
[1745664072331,4.785,1811.1,1811.0,5.52181115]
[1745664076866,16.57,1811.5,1811.2,5.52108887]
[1745664077022,4.782,1811.4,1810.9,0.8321]
[1745664077363,0.7804,1811.3,1811.1,5.521476]
[1745664078129,0.7804,1811.3,1811.2,5.52120141]
[1745664078380,4.782,1811.4,1811.3,5.52089659]
[1745664080372,4.782,1811.4,1811.2,5.5210206]
[1745664080733,4.782,1811.4,1811.1,5.52131088]
[1745664081031,4.782,1811.4,1811.1,5.52126722]
[1745664081233,4.782,1811.4,1811.2,5.52116427]
[1745664083970,4.75274016,1811.4,1811.2,5.52116427]
[1745664084168,4.75274016,1811.4,1811.1,5.52132065]
[1745664084478,0.7604,1811.3,1810.9,5.52200623]
[1745664084630,0.7604,1811.3,1810.9,6.07411538]
[1745664084969,0.7604,1811.3,1811.0,5.5217929]
[1745664085841,3.49338236,1811.3,1810.8,5.52236014]
[1745664086059,0.7604,1811.2,1810.8,5.52236014]
[1745664087073,0.7604,1811.2,1810.8,11.04458781]
[1745664087373,0.7604,1811.2,1810.8,6.70794645]
[1745664087584,0.7604,1811.2,1810.8,6.70791014]
[1745664087960,0.7604,1811.2,1811.0,5.52157787]
[1745664088254,4.782,1811.1,1811.0,5.52157787]
[1745664089774,4.782,1811.2,1811.1,5.52133963]
[1745664090359,4.782,1811.2,1811.1,6.62563138]
[1745664091281,4.782,1811.2,1811.0,5.52166585]
[1745664091780,4.782,1811.2,1811.0,11.04327247]
[1745664092083,4.782,1811.2,1811.0,5.52160662]
[1745664092683,4.782,1811.2,1811.1,5.52150626]
[1745664102188,5.5845,1811.2,1811.0,5.52159509]
[1745664102691,4.782,1811.2,1811.1,6.34520626]
[1745664109203,4.782,1811.2,1811.1,5.52150626]
[1745664110213,4.779,1811.4,1811.3,5.5206956]
[1745664115620,4.779,1811.4,1811.2,5.52101796]
[1745664118806,4.779,1811.4,1811.3,5.52089659]
[1745664121090,4.779,1811.4,1811.2,5.52101825]
[1745664121619,4.779,1811.4,1811.2,5.52101318]
[1745664121800,4.779,1811.4,1811.2,11.04198592]
[1745664121984,4.779,1811.4,1811.2,5.52097274]
[1745664122691,4.779,1811.4,1811.2,5.52095012]
[1745664124020,4.779,1811.4,1811.0,1.31325951]
[1745664124188,4.779,1811.4,1811.0,0.7611]
[1745664124391,1.28239574,1811.3,1810.8,0.28841409]
[1745664124714,0.7893,1811.1,1810.7,5.52260048]
[1745664124890,4.779,1811.0,1810.7,5.52260048]
[1745664125190,4.779,1811.0,1810.7,6.74361056]
[1745664126131,4.779,1811.0,1810.7,6.74351186]
[1745664126337,4.779,1811.0,1810.8,5.52236234]
[1745664126538,4.779,1811.0,1810.9,5.52211607]
[1745664128495,4.779,1811.2,1811.1,5.52126649]
[1745664128857,4.779,1811.2,1811.1,6.70821329]
[1745664130327,4.779,1811.2,1811.1,5.52126649]
[1745664132455,0.8284,1811.5,1811.2,5.5209897]
[1745664132764,4.779,1811.4,1811.2,5.5209897]
[1745664134430,4.779,1811.4,1811.2,11.0419898]
[1745664136452,4.779,1811.4,1811.2,5.5209897]
[1745664137551,4.779,1811.4,1811.2,5.52097376]
[1745664137847,4.779,1811.4,1811.2,11.04195525]
[1745664138147,4.779,1811.4,1811.2,5.52097376]
[1745664138647,4.779,1811.4,1811.3,5.52089659]
[1745664139657,4.779,1811.4,1811.2,5.52101336]
[1745664145352,4.779,1811.4,1811.2,6.50077422]
[1745664146554,4.779,1811.4,1811.3,5.52089659]
[1745664148063,4.779,1811.4,1811.2,7.30596539]
[1745664148725,4.779,1811.4,1811.2,7.30595184]
[1745664149551,4.779,1811.4,1811.2,5.52099098]
[1745664154738,4.779,1811.4,1811.0,0.8052]
[1745664155044,4.779,1811.4,1811.3,5.52089659]
[1745664155352,4.779,1811.4,1811.2,5.52100382]
[1745664156473,5.5403,1811.4,1811.2,5.52100382]
[1745664157764,5.5403,1811.4,1811.2,5.52098628]
[1745664157998,4.779,1811.4,1811.2,5.52098628]
[1745664159660,4.779,1811.4,1811.3,5.52089659]
[1745664159833,4.779,1811.4,1811.2,5.52098628]
[1745664160535,4.779,1811.4,1811.1,5.52147524]
[1745664160740,4.779,1811.4,1811.2,5.52119699]
[1745664160965,9.34449875,1811.3,1810.8,1.06880256]
[1745664161187,6.46065009,1811.2,1810.8,0.28840256]
[1745664161339,0.8234,1811.1,1810.8,5.8108079]
[1745664161546,4.776,1811.0,1810.8,5.8108079]
[1745664162156,4.776,1811.0,1810.9,5.52211607]
[1745664162370,4.776,1811.0,1810.8,6.94400718]
[1745664162964,4.776,1811.0,1810.9,5.52211607]
[1745664165069,4.776,1811.0,1810.8,13.28207835]
[1745664165369,4.776,1811.0,1810.8,13.28201758]
[1745664165547,4.776,1811.0,1810.8,7.75976155]
[1745664166242,4.776,1811.0,1810.9,0.77597616]
[1745664167990,4.776,1811.0,1810.8,7.75976202]
[1745664168192,4.776,1811.0,1810.8,13.28200781]
[1745664168593,4.776,1811.0,1810.8,7.75976202]
[1745664171592,4.776,1811.0,1810.8,6.94396202]
[1745664171799,4.776,1811.0,1810.8,0.28840256]
[1745664174094,4.776,1811.0,1810.8,5.81067122]
[1745664175169,4.776,1811.0,1810.8,0.28840256]
[1745664179117,4.776,1811.0,1810.8,5.81071752]
[1745664179260,9.27689942,1811.3,1810.9,5.52211607]
[1745664179466,5.66808908,1811.2,1810.9,5.52211607]
[1745664179699,4.774,1811.2,1810.9,5.52211607]
[1745664180812,4.774,1811.2,1810.8,6.57656506]
[1745664180971,10.29526316,1811.2,1810.8,0.28840256]
[1745664181176,0.756,1811.1,1810.8,0.28840256]
[1745664181697,0.756,1811.1,1810.8,5.81078468]
[1745664181875,0.756,1811.1,1810.8,0.28840256]
[1745664184184,0.756,1811.1,1810.8,5.81069196]
[1745664184376,0.756,1811.1,1810.9,5.52210055]
[1745664184900,4.774,1811.2,1810.8,6.57838581]
[1745664185066,4.774,1811.2,1810.8,7.23622439]
[1745664185267,4.774,1811.2,1810.8,1.71394114]
[1745664185465,4.774,1811.2,1811.0,5.52167593]
[1745664186408,4.774,1811.2,1810.9,5.52196367]
[1745664191705,4.774,1811.1,1810.9,5.52196367]
[1745664192003,4.774,1811.1,1810.8,11.99067841]
[1745664192205,4.774,1811.1,1810.8,6.46843166]
[1745664192505,4.774,1811.1,1810.9,5.52208733]
[1745664196807,4.774,1811.1,1811.0,5.52181115]
[1745664197628,17.06427891,1811.7,1811.1,5.52121117]
[1745664197906,3.0,1811.5,1811.2,5.52097525]
[1745664200309,3.0,1811.5,1811.1,5.52133013]
[1745664200727,0.7547,1811.4,1811.1,5.52133013]
[1745664201714,0.7547,1811.4,1811.1,12.22436815]
[1745664202225,0.7547,1811.4,1811.1,6.70303802]
[1745664202396,0.7547,1811.4,1811.2,5.52112463]
[1745664202905,4.77,1811.3,1811.1,6.70303802]
[1745664203717,4.77,1811.3,1811.2,5.52120141]
[1745664203945,4.77,1811.3,1811.2,6.74362535]
[1745664206138,4.77,1811.3,1811.2,1.22242394]
[1745664206338,4.77,1811.3,1811.1,11.04260547]
[1745664206540,4.77,1811.3,1811.2,5.52120141]
[1745664207039,4.77,1811.3,1811.0,6.29615979]
[1745664207225,9.33487072,1811.2,1810.8,0.28840256]
[1745664207539,10.79468568,1811.2,1810.8,0.28840256]
[1745664207756,4.77,1811.1,1810.8,0.28840256]
[1745664208340,4.77,1811.1,1811.0,5.52181115]
[1745664209342,4.77,1811.1,1810.9,5.52192713]
[1745664209511,4.77,1811.1,1810.9,5.52189709]
[1745664210042,4.77,1811.1,1811.0,5.52181115]
[1745664214044,4.77,1811.1,1810.9,6.73191747]
[1745664214045,4.77,1811.1,1810.9,6.73178425]
[1745664214540,4.77,1811.1,1810.9,1.20983098]
[1745664214745,4.77,1811.1,1810.9,5.52194193]
[1745664215838,4.77,1811.1,1811.0,5.52181115]
[1745664216723,4.77,1811.1,1810.9,5.52192237]
[1745664216942,5.70954273,1811.1,1810.8,0.28840256]
[1745664218145,4.77,1811.1,1810.8,5.81069248]
[1745664218952,4.77,1811.1,1811.0,5.52181115]
[1745664234183,4.77,1811.1,1810.9,6.28764851]
[1745664234468,4.77,1811.1,1810.9,6.28760226]
[1745664234861,4.77,1811.1,1810.9,5.52190226]
[1745664235887,4.77,1811.1,1810.8,6.39173845]
[1745664239667,4.77,1811.1,1811.0,6.32651115]
[1745664242578,0.7794,1811.4,1811.0,6.32635321]
[1745664242783,4.767,1811.3,1811.2,5.52109122]
[1745664245271,4.767,1811.3,1811.1,5.52136544]
[1745664245672,4.767,1811.3,1811.1,5.52128168]
[1745664246291,4.767,1811.3,1811.0,0.8047]
[1745664246615,5.32165,1811.3,1810.9,5.52190106]
[1745664246822,4.27253623,1811.2,1810.8,0.28840256]
[1745664247008,9.79390307,1811.2,1810.8,0.28840256]
[1745664247677,9.79390307,1811.2,1810.8,5.8107955]
[1745664247678,9.30086684,1811.2,1810.8,5.8107955]
[1745664249319,9.30086684,1811.2,1810.9,0.7547]
[1745664249320,4.767,1811.1,1810.9,0.7547]
[1745664249493,4.767,1811.1,1810.9,6.27662829]
[1745664249824,4.767,1811.1,1810.9,7.48535863]
[1745664250031,4.767,1811.1,1810.8,5.81063868]
[1745664251514,4.767,1811.1,1810.8,5.81060279]
[1745664251884,4.767,1811.1,1810.9,5.52198121]
[1745664253092,4.767,1811.1,1810.9,11.04391297]
[1745664253292,4.767,1811.1,1810.9,5.52193176]
[1745664253810,0.7634,1810.9,1810.4,0.7934]
[1745664253980,1.25643623,1810.5,1810.1,6.31781046]
[1745664254181,4.767,1810.4,1810.2,0.28850663]
[1745664255032,0.49303623,1810.3,1810.2,0.28850663]
[1745664255332,1.25643623,1810.3,1809.9,5.52490033]
[1745664255618,1.25643623,1810.3,1809.9,5.81347712]
[1745664255818,1.25643623,1810.3,1810.0,5.52483309]
[1745664256278,1.25643623,1810.3,1810.1,5.52454852]
[1745664256479,1.25643623,1810.3,1810.0,5.52483309]
[1745664256715,1.25643623,1810.3,1810.0,11.04952552]
[1745664257509,0.7634,1810.3,1810.0,11.04931493]
[1745664257741,0.7634,1810.3,1809.9,0.28857679]
[1745664257742,5.52443907,1810.2,1809.9,0.28857679]
[1745664257897,0.7634,1810.3,1809.9,6.39496525]
[1745664258582,0.7634,1810.3,1809.9,11.91984369]
[1745664258920,0.7634,1810.3,1810.0,5.524737]
[1745664259084,0.8103,1810.0,1809.9,0.28857679]
[1745664259413,5.5783,1810.0,1809.9,0.28857679]
[1745664259611,4.768,1810.0,1809.9,0.28857679]
[1745664262305,5.79725584,1810.0,1809.7,5.52567025]
[1745664262501,4.768,1810.0,1809.7,5.52567025]
[1745664262810,4.768,1810.0,1809.9,5.52516713]
[1745664263019,4.768,1810.0,1809.9,6.30326713]
[1745664263882,0.8054,1810.4,1810.1,5.52454204]
[1745664264083,4.766,1810.3,1810.1,5.52454204]
[1745664269239,4.766,1810.3,1810.0,5.52467695]
[1745664272256,4.766,1810.3,1809.9,11.05000338]
[1745664272417,4.766,1810.3,1809.9,5.52497477]
[1745664272622,4.766,1810.3,1809.9,11.04991404]
[1745664272827,4.766,1810.3,1810.0,5.52483908]
[1745664275341,4.766,1810.3,1809.9,5.52499631]
[1745664275879,0.758,1810.2,1809.9,5.52499631]
[1745664279372,0.758,1810.2,1809.6,6.6188274]
[1745664279576,0.758,1810.2,1809.9,5.52486361]
[1745664281873,0.758,1810.2,1810.0,5.52485986]
[1745664282175,0.758,1810.2,1809.9,5.5249506]
[1745664282572,0.758,1810.2,1810.0,5.52483835]
[1745664283886,4.766,1810.1,1810.0,5.52483835]
[1745664284082,4.766,1810.1,1810.0,5.52486187]
[1745664284379,4.766,1810.1,1809.9,5.52493563]
[1745664284887,4.766,1810.1,1810.0,5.52486187]
[1745664287984,4.766,1810.1,1809.9,5.52500911]
[1745664290090,4.766,1810.1,1809.9,11.04996162]
[1745664290254,4.766,1810.1,1809.9,11.04988105]
[1745664292017,4.766,1810.1,1809.9,5.52492854]
[1745664292600,4.766,1810.1,1809.9,11.04990477]
[1745664293306,4.766,1810.1,1810.0,5.52486187]
[1745664293696,4.766,1810.1,1809.9,5.52497742]
[1745664294512,4.766,1810.1,1810.0,5.52486187]
[1745664296212,4.763,1810.5,1810.4,5.52364118]
[1745664296417,16.572,1810.7,1810.6,5.52303103]